[Event "*** Titled Tuesday Blitz"]
[Site "Chess.com"]
[Date "2020.04.28"]
[Round "3"]
[White "Problematique_99"]
[Black "MusicCityMaster"]
[Result "0-1"]
[WhiteElo "2483"]
[BlackElo "2253"]
[TimeControl "180+1"]
[EndTime "10:27:24 PDT"]
[Termination "MusicCityMaster won by resignation"]

1. d4 {[%clk 0:03:00.9]} 1... Nf6 {[%clk 0:02:58.8]} 2. Bf4 {[%clk 0:03:01]}
2... d6 {[%clk 0:02:58.3]} 3. Nc3 {[%clk 0:03:00.2]} 3... Nbd7 {[%clk 0:02:58]}
4. Nf3 {[%clk 0:02:59.6]} 4... c5 {[%clk 0:02:58]} 5. d5 {[%clk 0:02:59.4]} 5...
b5 {[%clk 0:02:39]} 6. Nxb5 {[%clk 0:02:59]} 6... Ba6 {[%clk 0:02:39.2]} 7. a4
{[%clk 0:02:49.7]} 7... Qa5+ {[%clk 0:02:32.5]} 8. Bd2 {[%clk 0:02:45.8]} 8...
Qb6 {[%clk 0:02:32.3]} 9. c4 {[%clk 0:02:42]} 9... e5 {[%clk 0:02:27.7]} 10.
dxe6 {[%clk 0:02:41.6]} 10... fxe6 {[%clk 0:02:27.4]} 11. g3 {[%clk 0:02:36.9]}
11... Be7 {[%clk 0:02:23.6]} 12. Bg2 {[%clk 0:02:37.1]} 12... Bb7 {[%clk
0:02:22.9]} 13. a5 {[%clk 0:02:32.6]} 13... Qd8 {[%clk 0:02:21.6]} 14. a6 {[%clk
0:02:31.4]} 14... Bc6 {[%clk 0:02:21.9]} 15. O-O {[%clk 0:02:24.3]} 15... Nb6
{[%clk 0:02:17.6]} 16. Bh3 {[%clk 0:02:14.8]} 16... Nxc4 {[%clk 0:02:00.1]} 17.
Ng5 {[%clk 0:02:02.2]} 17... Bxb5 {[%clk 0:01:56.5]} 18. Nxe6 {[%clk 0:02:02.2]}
18... Qb6 {[%clk 0:01:55.8]} 19. Nxg7+ {[%clk 0:02:00.3]} 19... Kf7 {[%clk
0:01:55.9]} 20. Bh6 {[%clk 0:01:55.1]} 20... Bf8 {[%clk 0:01:10]} 21. Nf5 {[%clk
0:01:44.2]} 21... Bxh6 {[%clk 0:01:05.8]} 22. Nxh6+ {[%clk 0:01:45.1]} 22... Kg6
{[%clk 0:01:05.9]} 23. Nf5 {[%clk 0:01:41.3]} 23... Ne5 {[%clk 0:01:02.2]} 24.
Nxd6 {[%clk 0:01:33]} 24... Rad8 {[%clk 0:01:01]} 25. Qc2+ {[%clk 0:01:29.5]}
25... Kg7 {[%clk 0:00:59.2]} 26. Nf5+ {[%clk 0:01:26.8]} 26... Kf7 {[%clk
0:00:59.4]} 27. f4 {[%clk 0:01:20]} 27... c4+ {[%clk 0:00:55.4]} 28. Rf2 {[%clk
0:01:16.5]} 28... Neg4 {[%clk 0:00:52.5]} 29. e3 {[%clk 0:01:14.1]} 29... Nxf2
{[%clk 0:00:50]} 30. Kxf2 {[%clk 0:01:12.4]} 30... Rd2+ {[%clk 0:00:46.4]} 0-1

[Event "*** Titled Tuesday Blitz"]
[Site "Chess.com"]
[Date "2020.04.28"]
[Round "3"]
[White "Valuebet2000"]
[Black "ahachess"]
[Result "1-0"]
[WhiteElo "2582"]
[BlackElo "2378"]
[TimeControl "180+1"]
[EndTime "10:27:25 PDT"]
[Termination "Valuebet2000 won by resignation"]

1. d4 {[%clk 0:03:00.9]} 1... Nf6 {[%clk 0:02:58.9]} 2. c4 {[%clk 0:03:00.8]}
2... g6 {[%clk 0:02:59.2]} 3. Nc3 {[%clk 0:03:00.8]} 3... Bg7 {[%clk 0:02:59.5]}
4. e4 {[%clk 0:03:00]} 4... d6 {[%clk 0:03:00]} 5. Nf3 {[%clk 0:03:00.4]} 5...
O-O {[%clk 0:02:59.9]} 6. Be2 {[%clk 0:03:00.4]} 6... e5 {[%clk 0:02:59.7]} 7.
O-O {[%clk 0:02:59.4]} 7... Nc6 {[%clk 0:02:59.8]} 8. d5 {[%clk 0:02:56.6]} 8...
Ne7 {[%clk 0:02:59.9]} 9. Ne1 {[%clk 0:02:51.9]} 9... Nd7 {[%clk 0:02:59.6]} 10.
f3 {[%clk 0:02:25.1]} 10... f5 {[%clk 0:02:58.8]} 11. Nd3 {[%clk 0:02:24.4]}
11... c5 {[%clk 0:02:42]} 12. a3 {[%clk 0:02:19.2]} 12... a6 {[%clk 0:02:21.5]}
13. b4 {[%clk 0:02:18.9]} 13... b6 {[%clk 0:02:20.9]} 14. Rb1 {[%clk 0:02:10.8]}
14... Rf7 {[%clk 0:02:17]} 15. bxc5 {[%clk 0:02:01.2]} 15... bxc5 {[%clk
0:02:13.6]} 16. Bd2 {[%clk 0:02:02.1]} 16... Qf8 {[%clk 0:02:06.6]} 17. Na4
{[%clk 0:02:01.2]} 17... Bh6 {[%clk 0:02:04.3]} 18. Nb6 {[%clk 0:01:54.9]} 18...
Nxb6 {[%clk 0:01:35.8]} 19. Rxb6 {[%clk 0:01:55.8]} 19... Bxd2 {[%clk
0:01:33.4]} 20. Qxd2 {[%clk 0:01:55.4]} 20... fxe4 {[%clk 0:01:33.2]} 21. fxe4
{[%clk 0:01:55.2]} 21... Rxf1+ {[%clk 0:01:32.6]} 22. Bxf1 {[%clk 0:01:56.1]}
22... Qf6 {[%clk 0:01:24.8]} 23. Qf2 {[%clk 0:01:53.6]} 23... Qg5 {[%clk
0:01:06.1]} 24. Rxd6 {[%clk 0:01:51.7]} 24... Bg4 {[%clk 0:00:49.8]} 25. h3
{[%clk 0:01:50.8]} 25... Bxh3 {[%clk 0:00:48.4]} 26. Qf6 {[%clk 0:01:46.9]}
26... Qe3+ {[%clk 0:00:35.5]} 27. Kh2 {[%clk 0:01:39.6]} 27... Rf8 {[%clk
0:00:32.4]} 28. Qxe7 {[%clk 0:01:39.4]} 28... Rxf1 {[%clk 0:00:32.1]} 29. Rd8+
{[%clk 0:01:36.5]} 1-0

[Event "*** Titled Tuesday Blitz"]
[Site "Chess.com"]
[Date "2020.04.28"]
[Round "3"]
[White "Susal_De_Silva"]
[Black "Alohamora11"]
[Result "0-1"]
[WhiteElo "2260"]
[BlackElo "2514"]
[TimeControl "180+1"]
[EndTime "10:27:26 PDT"]
[Termination "Alohamora11 won by resignation"]

1. e4 {[%clk 0:03:00.9]} 1... c5 {[%clk 0:02:59.8]} 2. Nf3 {[%clk 0:03:00.9]}
2... g6 {[%clk 0:03:00]} 3. c3 {[%clk 0:03:00.2]} 3... Bg7 {[%clk 0:02:59.8]} 4.
d4 {[%clk 0:03:00.7]} 4... cxd4 {[%clk 0:03:00.7]} 5. cxd4 {[%clk 0:03:01.5]}
5... d5 {[%clk 0:03:01.5]} 6. e5 {[%clk 0:03:02]} 6... Bg4 {[%clk 0:03:01.6]} 7.
Nc3 {[%clk 0:02:59.1]} 7... e6 {[%clk 0:03:00.7]} 8. Be2 {[%clk 0:02:56.1]} 8...
Nc6 {[%clk 0:03:00]} 9. Be3 {[%clk 0:02:45.8]} 9... Nge7 {[%clk 0:02:59]} 10.
Qb3 {[%clk 0:02:44.6]} 10... O-O {[%clk 0:02:54.4]} 11. O-O {[%clk 0:02:42.6]}
11... Qd7 {[%clk 0:02:16.1]} 12. Rac1 {[%clk 0:02:35.2]} 12... Nf5 {[%clk
0:02:07.1]} 13. Rfd1 {[%clk 0:02:30.1]} 13... f6 {[%clk 0:02:07]} 14. exf6
{[%clk 0:02:28.6]} 14... Bxf6 {[%clk 0:02:07.5]} 15. Na4 {[%clk 0:01:34.3]}
15... Bxf3 {[%clk 0:01:54.5]} 16. Nc5 {[%clk 0:01:32.7]} 16... Qf7 {[%clk
0:01:48.7]} 17. Bxf3 {[%clk 0:01:26.5]} 17... Ncxd4 {[%clk 0:01:44.5]} 18. Bxd4
{[%clk 0:01:12]} 18... Nxd4 {[%clk 0:01:45.4]} 19. Rxd4 {[%clk 0:01:11.5]} 19...
Bxd4 {[%clk 0:01:46.3]} 20. Nxe6 {[%clk 0:01:11.8]} 20... Bxf2+ {[%clk
0:01:37.1]} 21. Kxf2 {[%clk 0:01:11.6]} 21... Qxe6 {[%clk 0:01:36.5]} 22. Kg1
{[%clk 0:01:10.2]} 22... Rfd8 {[%clk 0:01:13.4]} 23. h3 {[%clk 0:01:00.8]} 23...
Qb6+ {[%clk 0:01:12.2]} 24. Qxb6 {[%clk 0:00:59.8]} 24... axb6 {[%clk
0:01:13.1]} 25. a3 {[%clk 0:01:00.5]} 25... Rac8 {[%clk 0:01:01.6]} 26. Bxd5+
{[%clk 0:00:58.9]} 26... Kg7 {[%clk 0:00:59.1]} 27. Rxc8 {[%clk 0:00:56]} 27...
Rxc8 {[%clk 0:01:00]} 28. Bc6 {[%clk 0:00:56.7]} 28... Rxc6 {[%clk 0:00:59.4]}
0-1

[Event "*** Titled Tuesday Blitz"]
[Site "Chess.com"]
[Date "2020.04.28"]
[Round "3"]
[White "Y0ung_Capablanca"]
[Black "etserga"]
[Result "0-1"]
[WhiteElo "2644"]
[BlackElo "2485"]
[TimeControl "180+1"]
[EndTime "10:27:36 PDT"]
[Termination "etserga won by resignation"]

1. d4 {[%clk 0:03:00.9]} 1... d6 {[%clk 0:02:58.5]} 2. e4 {[%clk 0:03:00.8]}
2... Nf6 {[%clk 0:02:57]} 3. Nc3 {[%clk 0:03:00.2]} 3... g6 {[%clk 0:02:56.8]}
4. h3 {[%clk 0:02:59.5]} 4... Bg7 {[%clk 0:02:54.8]} 5. g4 {[%clk 0:02:59.7]}
5... c5 {[%clk 0:02:52.6]} 6. dxc5 {[%clk 0:02:57.4]} 6... Qa5 {[%clk
0:02:50.9]} 7. Bg2 {[%clk 0:02:56.2]} 7... Qxc5 {[%clk 0:02:47.1]} 8. Nge2
{[%clk 0:02:55.4]} 8... O-O {[%clk 0:02:45.2]} 9. O-O {[%clk 0:02:54.9]} 9...
Nc6 {[%clk 0:02:42.3]} 10. Be3 {[%clk 0:02:52.7]} 10... Qa5 {[%clk 0:02:41.6]}
11. f4 {[%clk 0:02:52.7]} 11... Re8 {[%clk 0:02:22.1]} 12. Qd2 {[%clk
0:02:50.2]} 12... a6 {[%clk 0:02:18.1]} 13. a3 {[%clk 0:02:46.2]} 13... Rb8
{[%clk 0:02:09.1]} 14. b4 {[%clk 0:02:12.9]} 14... Qd8 {[%clk 0:02:03.3]} 15.
Rad1 {[%clk 0:02:13.8]} 15... Be6 {[%clk 0:01:59.2]} 16. Rfe1 {[%clk 0:02:07.7]}
16... Bc4 {[%clk 0:01:56.3]} 17. Ng3 {[%clk 0:02:06.9]} 17... Nd7 {[%clk
0:01:55.2]} 18. e5 {[%clk 0:02:04.1]} 18... dxe5 {[%clk 0:01:41.8]} 19. f5
{[%clk 0:01:53.9]} 19... Nd4 {[%clk 0:01:37.4]} 20. fxg6 {[%clk 0:01:50.8]}
20... hxg6 {[%clk 0:01:36.1]} 21. Nce4 {[%clk 0:01:51.3]} 21... Nf6 {[%clk
0:01:30.7]} 22. Nc5 {[%clk 0:01:49.4]} 22... Qc7 {[%clk 0:01:24.8]} 23. Qf2
{[%clk 0:01:29.7]} 23... Nd5 {[%clk 0:01:18.9]} 24. Bxd5 {[%clk 0:01:25.5]}
24... Bxd5 {[%clk 0:01:18]} 25. Bxd4 {[%clk 0:01:21.2]} 25... exd4 {[%clk
0:01:16.5]} 26. Nge4 {[%clk 0:01:20.1]} 26... Rbd8 {[%clk 0:01:11.9]} 27. Ng5
{[%clk 0:01:08]} 27... e5 {[%clk 0:01:07.7]} 28. h4 {[%clk 0:01:04.9]} 28... Qc6
{[%clk 0:01:05.3]} 29. Nce4 {[%clk 0:00:54.2]} 29... f6 {[%clk 0:01:03.8]} 30.
c4 {[%clk 0:00:53.1]} 30... dxc3 {[%clk 0:00:56.1]} 0-1

[Event "*** Titled Tuesday Blitz"]
[Site "Chess.com"]
[Date "2020.04.28"]
[Round "3"]
[White "ChessMavenYeti"]
[Black "Art10ECHR"]
[Result "0-1"]
[WhiteElo "2172"]
[BlackElo "2365"]
[TimeControl "180+1"]
[EndTime "10:27:36 PDT"]
[Termination "Art10ECHR won by checkmate"]

1. Nf3 {[%clk 0:03:00.4]} 1... c5 {[%clk 0:02:59.5]} 2. g3 {[%clk 0:02:59.6]}
2... Nc6 {[%clk 0:02:59.3]} 3. Bg2 {[%clk 0:02:59.5]} 3... g6 {[%clk 0:02:59.2]}
4. O-O {[%clk 0:02:57.2]} 4... Bg7 {[%clk 0:02:59.4]} 5. e3 {[%clk 0:02:53.2]}
5... Nf6 {[%clk 0:02:57]} 6. d4 {[%clk 0:02:52.9]} 6... cxd4 {[%clk 0:02:55.7]}
7. Nxd4 {[%clk 0:02:52]} 7... O-O {[%clk 0:02:54.3]} 8. b3 {[%clk 0:02:51.6]}
8... d5 {[%clk 0:02:44.4]} 9. Bb2 {[%clk 0:02:51.3]} 9... Re8 {[%clk 0:02:39.3]}
10. Na3 {[%clk 0:02:47.4]} 10... e5 {[%clk 0:02:37.8]} 11. Nxc6 {[%clk
0:02:47.3]} 11... bxc6 {[%clk 0:02:38.7]} 12. c4 {[%clk 0:02:47.4]} 12... Bb7
{[%clk 0:02:20.1]} 13. Rc1 {[%clk 0:02:44.7]} 13... Qa5 {[%clk 0:02:15.1]} 14.
Qe2 {[%clk 0:02:32.4]} 14... Rad8 {[%clk 0:02:08]} 15. Rfd1 {[%clk 0:02:31]}
15... Ba6 {[%clk 0:01:59.2]} 16. Qd2 {[%clk 0:02:20.7]} 16... Qxd2 {[%clk
0:01:47]} 17. Rxd2 {[%clk 0:02:19.8]} 17... Ne4 {[%clk 0:01:31.4]} 18. Bxe4
{[%clk 0:02:18]} 18... dxe4 {[%clk 0:01:31.4]} 19. Rcd1 {[%clk 0:02:18.5]} 19...
Bf6 {[%clk 0:01:27.1]} 20. Rxd8 {[%clk 0:02:15.9]} 20... Bxd8 {[%clk 0:01:24.6]}
21. Bxe5 {[%clk 0:02:14.8]} 21... Bc8 {[%clk 0:01:15.8]} 22. Bc3 {[%clk
0:02:01.1]} 22... Bg4 {[%clk 0:01:14.6]} 23. Rd6 {[%clk 0:01:59.6]} 23... Be7
{[%clk 0:01:10.1]} 24. Rxc6 {[%clk 0:01:57]} 24... Bxa3 {[%clk 0:01:09.5]} 25.
Ra6 {[%clk 0:01:55.1]} 25... Bc5 {[%clk 0:01:06]} 26. b4 {[%clk 0:01:54.8]}
26... Bf8 {[%clk 0:01:01.8]} 27. Rxa7 {[%clk 0:01:53.9]} 27... Rd8 {[%clk
0:00:57.7]} 28. Kg2 {[%clk 0:01:41.5]} 28... Bf3+ {[%clk 0:00:57.6]} 29. Kh3
{[%clk 0:01:41.4]} 29... g5 {[%clk 0:00:55.5]} 30. g4 {[%clk 0:01:39.6]} 30...
Rd1 {[%clk 0:00:43]} 31. Ra8 {[%clk 0:01:31.4]} 31... Rg1 {[%clk 0:00:41.9]} 32.
Bf6 {[%clk 0:01:10.8]} 32... Bxg4# {[%clk 0:00:40.7]} 0-1

[Event "*** Titled Tuesday Blitz"]
[Site "Chess.com"]
[Date "2020.04.28"]
[Round "3"]
[White "Khayala13"]
[Black "WinstonSilvakov"]
[Result "1-0"]
[WhiteElo "2324"]
[BlackElo "2102"]
[TimeControl "180+1"]
[EndTime "10:27:38 PDT"]
[Termination "Khayala13 won by resignation"]

1. e4 {[%clk 0:03:00.9]} 1... Nf6 {[%clk 0:03:00.9]} 2. e5 {[%clk 0:03:00.6]}
2... Nd5 {[%clk 0:03:00.6]} 3. d4 {[%clk 0:03:01.5]} 3... d6 {[%clk 0:03:00.7]}
4. Nf3 {[%clk 0:03:01.8]} 4... Nb6 {[%clk 0:03:00.7]} 5. Bd3 {[%clk 0:02:59.8]}
5... g6 {[%clk 0:03:00.8]} 6. O-O {[%clk 0:02:58.7]} 6... Bg7 {[%clk 0:03:01]}
7. Qe2 {[%clk 0:02:59.1]} 7... O-O {[%clk 0:03:00.5]} 8. a4 {[%clk 0:02:58.5]}
8... a5 {[%clk 0:02:54.8]} 9. Nbd2 {[%clk 0:02:52.9]} 9... Nc6 {[%clk
0:02:53.4]} 10. c3 {[%clk 0:02:39.1]} 10... d5 {[%clk 0:02:20.5]} 11. Re1 {[%clk
0:02:36.9]} 11... e6 {[%clk 0:02:20.2]} 12. Nf1 {[%clk 0:02:36.5]} 12... Ne7
{[%clk 0:02:18.4]} 13. Ng3 {[%clk 0:02:36.2]} 13... Nd7 {[%clk 0:02:17.9]} 14.
Bg5 {[%clk 0:02:31.7]} 14... c5 {[%clk 0:02:15.6]} 15. h4 {[%clk 0:02:29]} 15...
h6 {[%clk 0:02:14.6]} 16. Bxe7 {[%clk 0:02:21.3]} 16... Qxe7 {[%clk 0:02:12.6]}
17. h5 {[%clk 0:02:22.2]} 17... g5 {[%clk 0:02:05.8]} 18. Bc2 {[%clk 0:02:16.4]}
18... Re8 {[%clk 0:01:48.7]} 19. Nh2 {[%clk 0:02:07.1]} 19... Nf8 {[%clk
0:01:27.7]} 20. Ng4 {[%clk 0:02:04.1]} 20... b6 {[%clk 0:01:21.7]} 21. Rf1
{[%clk 0:01:51.1]} 21... Ba6 {[%clk 0:01:08.3]} 22. Bd3 {[%clk 0:01:48.8]} 22...
Bxd3 {[%clk 0:00:58.3]} 23. Qxd3 {[%clk 0:01:49.7]} 23... Rec8 {[%clk
0:00:53.2]} 24. f4 {[%clk 0:01:47.7]} 24... gxf4 {[%clk 0:00:50.8]} 25. Rxf4
{[%clk 0:01:48.2]} 25... Qg5 {[%clk 0:00:48.7]} 26. Qf3 {[%clk 0:01:46.2]} 26...
Rc7 {[%clk 0:00:47.5]} 27. Rf1 {[%clk 0:01:42.3]} 27... Raa7 {[%clk 0:00:43.4]}
28. Nf6+ {[%clk 0:01:40.2]} 28... Kh8 {[%clk 0:00:41.1]} 29. Rg4 {[%clk
0:01:33.8]} 29... Qd2 {[%clk 0:00:37.5]} 30. Ne8 {[%clk 0:01:29.9]} 1-0

[Event "*** Titled Tuesday Blitz"]
[Site "Chess.com"]
[Date "2020.04.28"]
[Round "3"]
[White "Belka1989"]
[Black "bait_or_mate"]
[Result "0-1"]
[WhiteElo "2338"]
[BlackElo "2548"]
[TimeControl "180+1"]
[EndTime "10:27:41 PDT"]
[Termination "bait_or_mate won by resignation"]

1. d4 {[%clk 0:03:00.9]} 1... d5 {[%clk 0:02:55.2]} 2. Nf3 {[%clk 0:03:01.3]}
2... Nf6 {[%clk 0:02:55.2]} 3. Bf4 {[%clk 0:03:02]} 3... e6 {[%clk 0:02:55.3]}
4. e3 {[%clk 0:03:02.7]} 4... c5 {[%clk 0:02:55.3]} 5. c3 {[%clk 0:03:02.9]}
5... Nc6 {[%clk 0:02:55.7]} 6. Nbd2 {[%clk 0:03:02.8]} 6... cxd4 {[%clk
0:02:56.4]} 7. exd4 {[%clk 0:03:03.1]} 7... Nh5 {[%clk 0:02:56.9]} 8. Bg5 {[%clk
0:02:55.5]} 8... f6 {[%clk 0:02:56.8]} 9. Bh4 {[%clk 0:02:55.6]} 9... g6 {[%clk
0:02:48.8]} 10. Bd3 {[%clk 0:02:26.3]} 10... Nf4 {[%clk 0:02:44.4]} 11. Bf1
{[%clk 0:02:07.8]} 11... Bd6 {[%clk 0:02:39.2]} 12. Bg3 {[%clk 0:01:56.6]} 12...
O-O {[%clk 0:02:38.5]} 13. Bxf4 {[%clk 0:01:54]} 13... Bxf4 {[%clk 0:02:39.4]}
14. g3 {[%clk 0:01:45.6]} 14... Bd6 {[%clk 0:02:38.2]} 15. Bg2 {[%clk
0:01:43.9]} 15... e5 {[%clk 0:02:38.6]} 16. dxe5 {[%clk 0:01:39.9]} 16... fxe5
{[%clk 0:02:39.5]} 17. O-O {[%clk 0:01:31.6]} 17... e4 {[%clk 0:02:34.3]} 18.
Ne1 {[%clk 0:00:56.7]} 18... Ne5 {[%clk 0:02:33.5]} 19. Nb3 {[%clk 0:00:34.8]}
19... Be6 {[%clk 0:02:30.7]} 20. Nd4 {[%clk 0:00:34.1]} 20... Bf7 {[%clk
0:02:30.5]} 21. Nec2 {[%clk 0:00:30.9]} 21... Rc8 {[%clk 0:02:28.7]} 22. Ne3
{[%clk 0:00:25.8]} 22... Nd3 {[%clk 0:02:24]} 23. Qe2 {[%clk 0:00:15]} 23... Be5
{[%clk 0:02:18.1]} 24. Rfd1 {[%clk 0:00:13.5]} 24... Qb6 {[%clk 0:02:13.2]} 25.
Nb3 {[%clk 0:00:10.7]} 25... a5 {[%clk 0:02:08.7]} 26. Qc2 {[%clk 0:00:09.9]}
26... a4 {[%clk 0:02:05.6]} 27. Nd2 {[%clk 0:00:07]} 27... Qxb2 {[%clk
0:01:55.5]} 28. Qxb2 {[%clk 0:00:06.3]} 28... Nxb2 {[%clk 0:01:56.4]} 29. Rdb1
{[%clk 0:00:06.9]} 29... Bxc3 {[%clk 0:01:55.8]} 30. Ndf1 {[%clk 0:00:02.3]}
30... Nd3 {[%clk 0:01:52.8]} 31. Rd1 {[%clk 0:00:01.5]} 31... Bxa1 {[%clk
0:01:51.8]} 32. Rxa1 {[%clk 0:00:02.4]} 32... d4 {[%clk 0:01:51.6]} 33. Ng4
{[%clk 0:00:02.5]} 33... Bd5 {[%clk 0:01:51.2]} 34. Rb1 {[%clk 0:00:01.2]} 34...
h5 {[%clk 0:01:50.7]} 35. Bh1 {[%clk 0:00:01.5]} 0-1

[Event "*** Titled Tuesday Blitz"]
[Site "Chess.com"]
[Date "2020.04.28"]
[Round "3"]
[White "Alexchess1984"]
[Black "Quaternitychess"]
[Result "0-1"]
[WhiteElo "2674"]
[BlackElo "2216"]
[TimeControl "180+1"]
[EndTime "10:27:43 PDT"]
[Termination "Quaternitychess won by resignation"]

1. e4 {[%clk 0:03:00.9]} 1... d6 {[%clk 0:02:55.5]} 2. Nc3 {[%clk 0:02:58.1]}
2... Nf6 {[%clk 0:02:56]} 3. d4 {[%clk 0:02:57.6]} 3... Nbd7 {[%clk 0:02:55.9]}
4. Nf3 {[%clk 0:02:56]} 4... e5 {[%clk 0:02:56.4]} 5. Bc4 {[%clk 0:02:55.2]}
5... Be7 {[%clk 0:02:56.9]} 6. O-O {[%clk 0:02:54.8]} 6... O-O {[%clk
0:02:57.2]} 7. a4 {[%clk 0:02:55.1]} 7... a5 {[%clk 0:02:56.4]} 8. Re1 {[%clk
0:02:53.7]} 8... c6 {[%clk 0:02:56.9]} 9. Bf1 {[%clk 0:02:49.7]} 9... Re8 {[%clk
0:02:47.4]} 10. h3 {[%clk 0:02:47.8]} 10... Qc7 {[%clk 0:02:46.9]} 11. b3 {[%clk
0:02:47.3]} 11... Bf8 {[%clk 0:02:38.9]} 12. Bb2 {[%clk 0:02:47.3]} 12... exd4
{[%clk 0:02:38.4]} 13. Nxd4 {[%clk 0:02:45.6]} 13... Nc5 {[%clk 0:02:38.2]} 14.
Qf3 {[%clk 0:02:45.6]} 14... Bd7 {[%clk 0:02:16.2]} 15. Rad1 {[%clk 0:02:44.3]}
15... Rad8 {[%clk 0:02:15.6]} 16. Nf5 {[%clk 0:02:33.5]} 16... Bxf5 {[%clk
0:02:12.3]} 17. Qxf5 {[%clk 0:02:33.3]} 17... Re5 {[%clk 0:01:58.2]} 18. Qf3
{[%clk 0:02:30.4]} 18... Rde8 {[%clk 0:01:58.2]} 19. Bd3 {[%clk 0:02:00.8]}
19... d5 {[%clk 0:01:56.4]} 20. Qg3 {[%clk 0:01:34.4]} 20... Nh5 {[%clk
0:01:15.2]} 21. Qg4 {[%clk 0:01:20.1]} 21... g6 {[%clk 0:01:06.2]} 22. f4 {[%clk
0:01:08.6]} 22... f5 {[%clk 0:01:05.6]} 23. exf5 {[%clk 0:00:56.8]} 23... Rxe1+
{[%clk 0:01:04.2]} 24. Rxe1 {[%clk 0:00:57.3]} 24... Rxe1+ {[%clk 0:01:04]} 25.
Kf2 {[%clk 0:00:58.2]} 25... Qe7 {[%clk 0:00:55.1]} 26. Be2 {[%clk 0:00:49.7]}
26... Nf6 {[%clk 0:00:48.4]} 27. Qg5 {[%clk 0:00:46.4]} 0-1

[Event "*** Titled Tuesday Blitz"]
[Site "Chess.com"]
[Date "2020.04.28"]
[Round "3"]
[White "Benjoneliere44"]
[Black "Pavalamalli"]
[Result "1-0"]
[WhiteElo "2511"]
[BlackElo "2245"]
[TimeControl "180+1"]
[EndTime "10:27:43 PDT"]
[Termination "Benjoneliere44 won by resignation"]

1. e4 {[%clk 0:03:00.9]} 1... c5 {[%clk 0:02:59.5]} 2. Nc3 {[%clk 0:03:01.1]}
2... e6 {[%clk 0:02:58.9]} 3. g3 {[%clk 0:03:02]} 3... Nc6 {[%clk 0:02:56.1]} 4.
Bg2 {[%clk 0:03:01.8]} 4... g6 {[%clk 0:02:56.4]} 5. d3 {[%clk 0:03:02.2]} 5...
Bg7 {[%clk 0:02:56.4]} 6. Be3 {[%clk 0:03:02.6]} 6... d6 {[%clk 0:02:54.1]} 7.
Qd2 {[%clk 0:03:02.7]} 7... Nd4 {[%clk 0:02:52.2]} 8. Nd1 {[%clk 0:03:02.4]}
8... Rb8 {[%clk 0:02:44.6]} 9. c3 {[%clk 0:03:02.7]} 9... Nc6 {[%clk 0:02:43.6]}
10. Ne2 {[%clk 0:03:01]} 10... b5 {[%clk 0:02:37.8]} 11. d4 {[%clk 0:03:00.8]}
11... cxd4 {[%clk 0:02:32.1]} 12. cxd4 {[%clk 0:03:00.4]} 12... Nge7 {[%clk
0:02:20]} 13. Bh6 {[%clk 0:02:59.6]} 13... O-O {[%clk 0:01:53]} 14. h4 {[%clk
0:02:57.3]} 14... Qa5 {[%clk 0:01:15.6]} 15. Ndc3 {[%clk 0:02:36.2]} 15... b4
{[%clk 0:01:08.6]} 16. Nd1 {[%clk 0:02:30.3]} 16... f5 {[%clk 0:00:52.9]} 17.
Bxg7 {[%clk 0:02:11.4]} 17... Kxg7 {[%clk 0:00:49.9]} 18. h5 {[%clk 0:02:11.8]}
18... Kf7 {[%clk 0:00:19.8]} 19. hxg6+ {[%clk 0:02:06.5]} 19... hxg6 {[%clk
0:00:19.5]} 20. exf5 {[%clk 0:01:56.6]} 20... exf5 {[%clk 0:00:17.7]} 21. Qg5
{[%clk 0:01:43.3]} 21... Bd7 {[%clk 0:00:10.7]} 22. Rh7+ {[%clk 0:01:35.7]}
22... Ke8 {[%clk 0:00:10.3]} 23. Bxc6 {[%clk 0:01:30.8]} 23... Nxc6 {[%clk
0:00:07.5]} 24. Qxg6+ {[%clk 0:01:30.2]} 24... Kd8 {[%clk 0:00:07.7]} 25. Qxd6
{[%clk 0:01:29.9]} 25... Qc7 {[%clk 0:00:05.5]} 26. Qxf8+ {[%clk 0:01:28.7]} 1-0

[Event "*** Titled Tuesday Blitz"]
[Site "Chess.com"]
[Date "2020.04.28"]
[Round "3"]
[White "icychess54"]
[Black "giantslayer83"]
[Result "0-1"]
[WhiteElo "2257"]
[BlackElo "2690"]
[TimeControl "180+1"]
[EndTime "10:27:43 PDT"]
[Termination "giantslayer83 won on time"]

1. c4 {[%clk 0:03:00.9]} 1... g6 {[%clk 0:02:59.4]} 2. Nf3 {[%clk 0:03:01.2]}
2... Bg7 {[%clk 0:02:59.7]} 3. e3 {[%clk 0:03:02.1]} 3... Nf6 {[%clk 0:02:58.9]}
4. Be2 {[%clk 0:03:03]} 4... O-O {[%clk 0:02:58.4]} 5. O-O {[%clk 0:03:03.9]}
5... d6 {[%clk 0:02:59]} 6. Nc3 {[%clk 0:03:04.5]} 6... e5 {[%clk 0:02:58.4]} 7.
b3 {[%clk 0:03:04.9]} 7... Nc6 {[%clk 0:02:56.6]} 8. Bb2 {[%clk 0:03:05.2]} 8...
Re8 {[%clk 0:02:55.8]} 9. d4 {[%clk 0:03:05.6]} 9... e4 {[%clk 0:02:55.1]} 10.
Nd2 {[%clk 0:03:06]} 10... h5 {[%clk 0:02:45]} 11. a3 {[%clk 0:03:04.6]} 11...
Bf5 {[%clk 0:02:44.5]} 12. b4 {[%clk 0:03:04.1]} 12... h4 {[%clk 0:02:42]} 13.
b5 {[%clk 0:03:01.4]} 13... Ne7 {[%clk 0:02:40.1]} 14. f3 {[%clk 0:02:49.8]}
14... exf3 {[%clk 0:02:35.8]} 15. Bxf3 {[%clk 0:02:49.4]} 15... d5 {[%clk
0:02:26]} 16. Re1 {[%clk 0:02:30]} 16... c6 {[%clk 0:02:17.8]} 17. e4 {[%clk
0:01:56.4]} 17... dxe4 {[%clk 0:02:15]} 18. Ncxe4 {[%clk 0:01:56.3]} 18... Nxe4
{[%clk 0:02:12.8]} 19. Nxe4 {[%clk 0:01:56]} 19... cxb5 {[%clk 0:02:08.8]} 20.
c5 {[%clk 0:01:55.4]} 20... Bxe4 {[%clk 0:01:54.8]} 21. Bxe4 {[%clk 0:01:54]}
21... Nc6 {[%clk 0:01:52.7]} 22. d5 {[%clk 0:01:08.8]} 22... Bxb2 {[%clk
0:01:46.9]} 23. dxc6 {[%clk 0:01:09.2]} 23... Qd4+ {[%clk 0:01:41.5]} 24. Qxd4
{[%clk 0:00:11]} 24... Bxd4+ {[%clk 0:01:42.4]} 25. Kf1 {[%clk 0:00:08.2]} 25...
Bxa1 {[%clk 0:01:39]} 26. cxb7 {[%clk 0:00:06.3]} 26... Rab8 {[%clk 0:01:37.8]}
27. c6 {[%clk 0:00:04.5]} 27... Be5 {[%clk 0:01:36.9]} 28. Bf5 {[%clk
0:00:04.1]} 28... Bc7 {[%clk 0:01:32.5]} 0-1